[Event "Weekend Groninger Combinatie 2019"]
[Site "Groningen"]
[Date "2019.06.01"]
[Round "5.10"]
[White "Seijen, Henk"]
[Black "Schulz, Daniel"]
[Result "1-0"]
[ECO "C05"]
[WhiteElo "1750"]
[BlackElo "2092"]
[Annotator "NA"]
[PlyCount "45"]
[EventDate "2019.05.30"]
[EventType "swiss"]
[EventCountry "NED"]
[SourceTitle "playchess.com"]
[Source "ChessBase"]
[SourceQuality "1"]
[TimeControl "5400+30"]

1. e4 {[%emt 0:00:00]} e6 {[%emt 0:00:15]} 2. d4 {[%emt 0:00:00]} d5 {[%emt 0:00:16]} 3. Nd2 {[%emt 0:00:01]} Nf6 {[%emt 0:00:18]} 4. Bd3 {[%emt 0:00:22]} c5 {[%emt 0:00:17]} 5. c3 {[%emt 0:00:42]} Nc6 {[%emt 0:02:56]} 6. Ngf3 {[%emt 0:00:40]} cxd4 {[%emt 0:04:23]} 7. cxd4 {[%emt 0:02:41]} Nb4 {[%emt 0:00:31]} 8. Bb1 {[%emt 0:01:53]} dxe4 {[%emt 0:01:59]} 9. Nxe4 {[%emt 0:00:38]} Be7 {[%emt 0:06:57]} 10. O-O {[%emt 0:02:25]} h6 {[%emt 0:06:13]} 11. Nxf6+ {[%emt 0:05:39]} Bxf6 {[%emt 0:04:04]} 12. Re1 {[%emt 0:05:19]} Be7 {[%emt 0:04:16]} 13. Ne5 {[%emt 0:04:30]} O-O {[%emt 0:02:09]} 14. a3 {[%emt 0:10:57]} Nd5 {[%emt 0:00:18]} 15. Qd3 {[%emt 0:01:33]} Nf6 {[%emt 0:02:22]} 16. Ng4 {[%emt 0:02:56]} Re8 {[%emt 0:00:51]} 17. Bd2 {[%emt 0:13:42]} a5 {[%emt 0:12:19]} 18. Re3 {[%emt 0:04:12]} b6 {[%emt 0:10:03]} 19. Rg3 {[%emt 0:03:38]} h5 {[%emt 0:06:53]} 20. Nh6+ {[%emt 0:05:44]} Kf8 {[%emt 0:00:21]} 21. Nxf7 {[%emt 0:00:35]} Qd5 {[%emt 0:02:00]} 22. Qg6 {[%emt 0:01:50]} Ng4 {[%emt 0:01:34]} 23. Ne5 {[%emt 0:01:10]} 1-0

[Event "Weekend Groninger Combinatie 2019"]
[Site "Groningen"]
[Date "2019.06.02"]
[Round "6.1"]
[White "Wempe, Joost"]
[Black "Maris, Ivo"]
[Result "1/2-1/2"]
[ECO "A41"]
[WhiteElo "2261"]
[BlackElo "2386"]
[Annotator "ChessBase"]
[PlyCount "77"]
[EventDate "2019.05.30"]
[EventType "swiss"]
[EventCountry "NED"]
[SourceTitle "playchess.com"]
[Source "ChessBase"]
[SourceQuality "1"]
[TimeControl "5400+30"]

1. d4 {[%emt 0:00:00]} d6 {[%emt 0:03:07]} 2. Nf3 {[%emt 0:02:57]} g6 {[%emt 0:00:50]} 3. c4 {[%emt 0:00:28]} Bg7 {[%emt 0:00:27]} 4. Nc3 {[%emt 0:02:06]} e5 {[%emt 0:01:34]} 5. e3 {[%emt 0:09:48]} Nd7 {[%emt 0:03:52]} 6. Be2 {[%emt 0:00:30]} Ne7 {[%emt 0:00:25]} 7. O-O {[%emt 0:02:08]} O-O {[%emt 0:00:34]} 8. b4 {[%emt 0:02:43]} exd4 {[%emt 0:01:48]} 9. exd4 {[%emt 0:00:38]} d5 {[%emt 0:00:23]} 10. Bg5 {[%emt 0:07:40]} dxc4 {[%emt 0:11:35]} 11. Bxc4 {[%emt 0:03:02]} h6 {[%emt 0:00:58]} 12. Bh4 {[%emt 0:08:25]} Nb6 {[%emt 0:01:18]} 13. Bb3 {[%emt 0:11:33]} g5 {[%emt 0:08:54]} 14. Bg3 {[%emt 0:01:16]} Nf5 {[%emt 0:01:44]} 15. Ne2 {[%emt 0:16:46]} Re8 {[%emt 0:03:49]} 16. h3 {[%emt 0:07:39]} Nxg3 {[%emt 0:16:47]} 17. Nxg3 {[%emt 0:03:40]} Nd5 {[%emt 0:01:54]} 18. Ne5 {[%emt 0:05:05]} Be6 {[%emt 0:00:42]} 19. Nh5 {[%emt 0:00:52]} Bh8 {[%emt 0:11:58]} 20. Ng4 {[%emt 0:00:19]} Bg7 {[%emt 0:04:44]} 21. Qf3 {[%emt 0:00:31]} Nf4 {[%emt 0:07:46]} 22. Bxe6 {[%emt 0:02:34]} Rxe6 {[%emt 0:01:16]} 23. Nxf4 {[%emt 0:03:50]} gxf4 {[%emt 0:00:01]} 24. Qxf4 {[%emt 0:00:23]} Qxd4 {[%emt 0:00:16]} 25. Qxc7 {[%emt 0:00:43]} Qb6 {[%emt 0:04:36]} 26. Rac1 {[%emt 0:00:46]} Rd8 {[%emt 0:01:32]} 27. Rc4 {[%emt 0:01:34]} Qxc7 {[%emt 0:03:48]} 28. Rxc7 {[%emt 0:00:05]} Rd2 {[%emt 0:00:23]} 29. Ne3 {[%emt 0:02:24]} Bd4 {[%emt 0:00:41]} 30. Rxb7 {[%emt 0:00:14]} Rxa2 {[%emt 0:01:43]} 31. Rd1 {[%emt 0:00:56]} Bxe3 {[%emt 0:01:41]} 32. fxe3 {[%emt 0:00:06]} Rg6 {[%emt 0:00:23]} 33. g4 {[%emt 0:00:38]} Re6 {[%emt 0:01:27]} 34. Rf1 {[%emt 0:00:45]} Rxe3 {[%emt 0:00:28]} 35. Rfxf7 {[%emt 0:00:41]} Rg3+ {[%emt 0:00:06]} 36. Kf1 {[%emt 0:00:07]} Rxh3 {[%emt 0:00:03]} 37. Rg7+ {[%emt 0:00:29]} Kh8 {[%emt 0:00:41]} 38. Rh7+ {[%emt 0:00:14]} Kg8 {[%emt 0:00:01]} 39. Rbg7+ {[%emt 0:00:17]} 1/2-1/2

[Event "Weekend Groninger Combinatie 2019"]
[Site "Groningen"]
[Date "2019.06.02"]
[Round "6.2"]
[White "Ernst, Sipke"]
[Black "Elgersma, Simon"]
[Result "1-0"]
[ECO "D27"]
[WhiteElo "2540"]
[BlackElo "2088"]
[Annotator "ChessBase"]
[PlyCount "65"]
[EventDate "2019.05.30"]
[EventType "swiss"]
[EventCountry "NED"]
[SourceTitle "playchess.com"]
[Source "ChessBase"]
[SourceQuality "1"]
[TimeControl "5400+30"]

1. d4 {[%emt 0:00:00]} d5 {[%emt 0:00:00]} 2. c4 {[%emt 0:00:49]} e6 {[%emt 0:00:00]} 3. Nc3 {[%emt 0:00:12]} a6 {[%emt 0:00:00]} 4. e3 {[%emt 0:05:40]} Nf6 {[%emt 0:01:13]} 5. Nf3 {[%emt 0:00:09]} dxc4 {[%emt 0:00:13]} 6. a4 {[%emt 0:00:23]} c5 {[%emt 0:00:46]} 7. Bxc4 {[%emt 0:00:03]} Nc6 {[%emt 0:01:07]} 8. O-O {[%emt 0:00:04]} Be7 {[%emt 0:00:48]} 9. dxc5 {[%emt 0:00:02]} O-O {[%emt 0:06:09]} 10. Qe2 {[%emt 0:02:03]} Bxc5 {[%emt 0:01:30]} 11. e4 {[%emt 0:08:18]} Nd4 {[%emt 0:08:24]} 12. Nxd4 {[%emt 0:00:14]} Bxd4 {[%emt 0:00:35]} 13. e5 {[%emt 0:06:46]} Nd7 {[%emt 0:01:28]} 14. Bf4 {[%emt 0:03:44]} Qc7 {[%emt 0:09:30]} 15. Rad1 {[%emt 0:00:22]} Bxc3 {[%emt 0:00:18]} 16. bxc3 {[%emt 0:00:08]} Re8 {[%emt 0:01:41]} 17. h4 {[%emt 0:14:26]} Nf8 {[%emt 0:07:12]} 18. h5 {[%emt 0:01:06]} Bd7 {[%emt 0:03:00]} 19. Bb3 {[%emt 0:00:31]} b5 {[%emt 0:13:14]} 20. axb5 {[%emt 0:09:10]} Qxc3 {[%emt 0:03:09]} 21. Bc4 {[%emt 0:05:41]} Bxb5 {[%emt 0:03:34]} 22. Bxb5 {[%emt 0:00:04]} axb5 {[%emt 0:00:13]} 23. Qxb5 {[%emt 0:41:35]} Rec8 {[%emt 0:04:12]} 24. Qe2 {[%emt 0:00:30]} Rab8 {[%emt 0:33:44]} 25. Rfe1 {[%emt 0:00:00]} Rb2 {[%emt 0:00:00]} 26. Qg4 {[%emt 0:01:00]} Qc2 {[%emt 0:00:00]} 27. Rd2 {[%emt 0:00:00]} Qc3 {[%emt 0:01:30]} 28. Bh6 {[%emt 0:01:00]} g6 {[%emt 0:00:00]} 29. Qh4 {[%emt 0:00:00]} Nd7 {[%emt 0:00:00]} 30. Rdd1 {[%emt 0:01:00]} Re8 {[%emt 0:00:00]} 31. Re3 {[%emt 0:00:00]} Qc7 {[%emt 0:02:00]} 32. Red3 {[%emt 0:00:00]} Rd8 {[%emt 0:00:30]} 33. Qf6 {[%emt 0:00:00]} 1-0

[Event "Weekend Groninger Combinatie 2019"]
[Site "Groningen"]
[Date "2019.06.02"]
[Round "6.3"]
[White "Nicolai, Amir"]
[Black "Zwirs, Nico"]
[Result "0-1"]
[ECO "B90"]
[WhiteElo "2095"]
[BlackElo "2386"]
[Annotator "ChessBase"]
[PlyCount "76"]
[EventDate "2019.05.30"]
[EventType "swiss"]
[EventCountry "NED"]
[SourceTitle "playchess.com"]
[Source "ChessBase"]
[SourceQuality "1"]
[TimeControl "5400+30"]

1. e4 {[%emt 0:01:48]} c5 {[%emt 0:02:03]} 2. Nc3 {[%emt 0:00:09]} a6 {[%emt 0:00:19]} 3. Nf3 {[%emt 0:04:41]} d6 {[%emt 0:00:11]} 4. d4 {[%emt 0:00:18]} cxd4 {[%emt 0:00:03]} 5. Nxd4 {[%emt 0:00:02]} Nf6 {[%emt 0:00:07]} 6. h3 {[%emt 0:00:30]} Nc6 {[%emt 0:04:16]} 7. g4 {[%emt 0:05:11]} Qb6 {[%emt 0:00:12]} 8. Nde2 {[%emt 0:04:04]} e6 {[%emt 0:00:27]} 9. Be3 {[%emt 0:07:27]} Qc7 {[%emt 0:03:51]} 10. g5 {[%emt 0:04:11]} Nd7 {[%emt 0:00:15]} 11. Bg2 {[%emt 0:00:12]} b5 {[%emt 0:00:40]} 12. Qd2 {[%emt 0:03:23]} Bb7 {[%emt 0:01:07]} 13. O-O-O {[%emt 0:03:19]} Nb6 {[%emt 0:02:34]} 14. b3 {[%emt 0:12:13]} b4 {[%emt 0:04:15]} 15. Nd5 {[%emt 0:04:17]} exd5 {[%emt 0:01:05]} 16. exd5 {[%emt 0:00:06]} Ne7 {[%emt 0:20:42]} 17. Nf4 {[%emt 0:13:31]} Nf5 {[%emt 0:29:23]} 18. Rhe1 {[%emt 0:09:04]} Be7 {[%emt 0:02:05]} 19. Qxb4 {[%emt 0:01:09]} Nxe3 {[%emt 0:01:23]} 20. Rxe3 {[%emt 0:00:08]} O-O {[%emt 0:00:40]} 21. Rc3 {[%emt 0:01:17]} Qd8 {[%emt 0:01:17]} 22. h4 {[%emt 0:00:06]} Rb8 {[%emt 0:11:31]} 23. Qd4 {[%emt 0:00:50]} Re8 {[%emt 0:06:53]} 24. Nh5 {[%emt 0:03:55]} Bf8 {[%emt 0:00:28]} 25. f4 {[%emt 0:05:33]} Bc8 {[%emt 0:03:07]} 26. Rg1 {[%emt 0:03:41]} Bf5 {[%emt 0:00:41]} 27. Rc6 {[%emt 0:01:38]} Nc8 {[%emt 0:01:34]} 28. Rxa6 {[%emt 0:01:51]} Ne7 {[%emt 0:01:25]} 29. Nf6+ {[%emt 0:03:21]} gxf6 {[%emt 0:00:25]} 30. gxf6 {[%emt 0:00:06]} Ng6 {[%emt 0:00:14]} 31. h5 {[%emt 0:00:22]} Re2 {[%emt 0:01:08]} 32. hxg6 {[%emt 0:01:35]} hxg6 {[%emt 0:00:21]} 33. Bh3 {[%emt 0:02:48]} Rxc2+ {[%emt 0:00:39]} 34. Kd1 {[%emt 0:00:04]} Qe8 {[%emt 0:00:24]} 35. Bg4 {[%emt 0:02:26]} Bxg4+ {[%emt 0:00:15]} 36. Kxc2 {[%emt 0:00:02]} Qe2+ {[%emt 0:00:08]} 37. Kc3 {[%emt 0:00:31]} Qxa6 {[%emt 0:00:40]} 38. Rxg4 {[%emt 0:00:16]} Qc8+ {[%emt 0:00:03]} 0-1

[Event "Weekend Groninger Combinatie 2019"]
[Site "Groningen"]
[Date "2019.06.02"]
[Round "6.4"]
[White "Knol, Geon"]
[Black "Hoeksema, Hendrik Pieter"]
[Result "0-1"]
[ECO "B26"]
[WhiteElo "2082"]
[BlackElo "2349"]
[Annotator "ChessBase"]
[PlyCount "80"]
[EventDate "2019.05.30"]
[EventType "swiss"]
[EventCountry "NED"]
[SourceTitle "playchess.com"]
[Source "ChessBase"]
[SourceQuality "1"]
[TimeControl "5400+30"]

1. e4 {[%emt 0:00:54]} d6 {[%emt 0:00:00]} 2. g3 {[%emt 0:02:05]} c5 {[%emt 0:00:17]} 3. Nc3 {[%emt 0:01:22]} Nc6 {[%emt 0:00:07]} 4. Bg2 {[%emt 0:00:05]} g6 {[%emt 0:00:06]} 5. d3 {[%emt 0:00:05]} Bg7 {[%emt 0:00:06]} 6. Be3 {[%emt 0:00:20]} Nf6 {[%emt 0:00:35]} 7. h3 {[%emt 0:00:14]} O-O {[%emt 0:00:20]} 8. Qd2 {[%emt 0:00:23]} e5 {[%emt 0:00:33]} 9. Nge2 {[%emt 0:02:13]} Nd4 {[%emt 0:00:28]} 10. g4 {[%emt 0:01:56]} Be6 {[%emt 0:06:48]} 11. Ng3 {[%emt 0:03:02]} b5 {[%emt 0:04:17]} 12. Nd5 {[%emt 0:03:09]} Nd7 {[%emt 0:06:23]} 13. c3 {[%emt 0:02:15]} Nc6 {[%emt 0:00:19]} 14. O-O {[%emt 0:01:41]} Bxd5 {[%emt 0:07:30]} 15. exd5 {[%emt 0:00:06]} Ne7 {[%emt 0:00:04]} 16. c4 {[%emt 0:04:50]} f5 {[%emt 0:11:24]} 17. Bg5 {[%emt 0:03:16]} Bf6 {[%emt 0:18:11]} 18. Bh6 {[%emt 0:03:38]} Rf7 {[%emt 0:01:07]} 19. cxb5 {[%emt 0:04:47]} Bh4 {[%emt 0:01:23]} 20. Ne2 {[%emt 0:02:52]} fxg4 {[%emt 0:04:24]} 21. hxg4 {[%emt 0:00:29]} Nf6 {[%emt 0:00:08]} 22. Bg5 {[%emt 0:03:57]} Bxg5 {[%emt 0:00:31]} 23. Qxg5 {[%emt 0:00:05]} Qf8 {[%emt 0:15:14]} 24. f4 {[%emt 0:04:34]} h6 {[%emt 0:00:30]} 25. Qh4 {[%emt 0:00:02]} exf4 {[%emt 0:00:15]} 26. g5 {[%emt 0:01:26]} Nh5 {[%emt 0:01:57]} 27. gxh6 {[%emt 0:12:44]} Qxh6 {[%emt 0:03:45]} 28. Nxf4 {[%emt 0:12:24]} Nf5 {[%emt 0:00:18]} 29. Qh2 {[%emt 0:02:39]} Nfg3 {[%emt 0:00:37]} 30. Rf3 {[%emt 0:03:50]} Rxf4 {[%emt 0:00:44]} 31. Rxg3 {[%emt 0:00:17]} Qg7 {[%emt 0:00:24]} 32. Re3 {[%emt 0:07:59]} Qd4 {[%emt 0:00:39]} 33. Rae1 {[%emt 0:00:04]} Re8 {[%emt 0:03:04]} 34. Be4 {[%emt 0:02:10]} Rg4+ {[%emt 0:02:10]} 35. Kh1 {[%emt 0:00:38]} Re5 {[%emt 0:01:38]} 36. Rg1 {[%emt 0:07:33]} Rxg1+ {[%emt 0:03:47]} 37. Qxg1 {[%emt 0:00:05]} Nf4 {[%emt 0:00:06]} 38. Qe1 {[%emt 0:03:45]} Rh5+ {[%emt 0:00:49]} 39. Kg1 {[%emt 0:00:03]} Rh3 {[%emt 0:01:06]} 40. Kf2 {[%emt 0:01:20]} Nxd3+ {[%emt 0:01:25]} 0-1

[Event "Weekend Groninger Combinatie 2019"]
[Site "Groningen"]
[Date "2019.06.02"]
[Round "6.5"]
[White "Van Hamond, Fons"]
[Black "De Boer, Eelke"]
[Result "0-1"]
[ECO "E72"]
[WhiteElo "1998"]
[BlackElo "2333"]
[Annotator "ChessBase"]
[PlyCount "48"]
[EventDate "2019.05.30"]
[EventType "swiss"]
[EventCountry "NED"]
[SourceTitle "playchess.com"]
[Source "ChessBase"]
[SourceQuality "1"]
[TimeControl "5400+30"]

1. g3 {[%emt 0:00:00]} Nf6 {[%emt 0:05:14]} 2. Bg2 {[%emt 0:00:09]} g6 {[%emt 0:01:31]} 3. c4 {[%emt 0:00:30]} Bg7 {[%emt 0:00:11]} 4. Nc3 {[%emt 0:00:13]} O-O {[%emt 0:00:10]} 5. d4 {[%emt 0:01:31]} d6 {[%emt 0:00:10]} 6. e4 {[%emt 0:03:30]} c5 {[%emt 0:04:20]} 7. dxc5 {[%emt 0:07:14]} dxc5 {[%emt 0:00:09]} 8. Be3 {[%emt 0:00:10]} Nc6 {[%emt 0:03:16]} 9. Bxc5 {[%emt 0:09:49]} Nd7 {[%emt 0:00:34]} 10. Ba3 {[%emt 0:10:21]} Qa5 {[%emt 0:06:17]} 11. Nge2 {[%emt 0:01:03]} Nde5 {[%emt 0:00:10]} 12. Qd5 {[%emt 0:00:57]} Qb6 {[%emt 0:05:03]} 13. c5 {[%emt 0:05:04]} Qa5 {[%emt 0:04:06]} 14. O-O {[%emt 0:01:22]} Be6 {[%emt 0:00:17]} 15. Qd1 {[%emt 0:00:44]} Nc4 {[%emt 0:00:28]} 16. Rb1 {[%emt 0:02:53]} Nxa3 {[%emt 0:00:34]} 17. bxa3 {[%emt 0:00:20]} Bxc3 {[%emt 0:00:15]} 18. Nxc3 {[%emt 0:02:05]} Qxc3 {[%emt 0:00:07]} 19. Qc1 {[%emt 0:01:40]} Qxc1 {[%emt 0:01:22]} 20. Rfxc1 {[%emt 0:00:02]} Rab8 {[%emt 0:00:12]} 21. Rb2 {[%emt 0:01:22]} Rfd8 {[%emt 0:02:37]} 22. Rcb1 {[%emt 0:01:09]} a6 {[%emt 0:02:49]} 23. f4 {[%emt 0:00:15]} Na5 {[%emt 0:00:33]} 24. Bf1 {[%emt 0:00:43]} Rbc8 {[%emt 0:00:40]} 0-1

[Event "Weekend Groninger Combinatie 2019"]
[Site "Groningen"]
[Date "2019.06.02"]
[Round "6.6"]
[White "Pel, Bonno"]
[Black "De Boer, Bas"]
[Result "1/2-1/2"]
[ECO "A00"]
[WhiteElo "2260"]
[BlackElo "2095"]
[Annotator "ChessBase"]
[PlyCount "97"]
[EventDate "2019.05.30"]
[EventType "swiss"]
[EventCountry "NED"]
[SourceTitle "playchess.com"]
[Source "ChessBase"]
[SourceQuality "1"]
[TimeControl "5400+30"]

1. g3 {[%emt 0:07:13]} d5 {[%emt 0:00:00]} 2. Bg2 {[%emt 0:00:20]} e5 {[%emt 0:00:14]} 3. d3 {[%emt 0:00:43]} Nf6 {[%emt 0:00:12]} 4. Nf3 {[%emt 0:01:47]} Bd6 {[%emt 0:00:06]} 5. O-O {[%emt 0:00:34]} O-O {[%emt 0:00:57]} 6. c4 {[%emt 0:02:17]} d4 {[%emt 0:02:51]} 7. c5 {[%emt 0:06:59]} Bxc5 {[%emt 0:00:34]} 8. Nxe5 {[%emt 0:00:08]} c6 {[%emt 0:06:55]} 9. Qc2 {[%emt 0:11:57]} Qe7 {[%emt 0:05:04]} 10. Nf3 {[%emt 0:00:36]} Na6 {[%emt 0:03:45]} 11. a3 {[%emt 0:03:25]} Re8 {[%emt 0:04:16]} 12. Re1 {[%emt 0:05:15]} Be6 {[%emt 0:08:56]} 13. b4 {[%emt 0:02:06]} Bb6 {[%emt 0:00:06]} 14. Bb2 {[%emt 0:00:09]} Rad8 {[%emt 0:06:13]} 15. Nbd2 {[%emt 0:00:12]} c5 {[%emt 0:10:28]} 16. bxc5 {[%emt 0:15:14]} Qxc5 {[%emt 0:02:31]} 17. Qa4 {[%emt 0:06:02]} Qh5 {[%emt 0:04:11]} 18. Nxd4 {[%emt 0:13:19]} Ng4 {[%emt 0:14:01]} 19. N2f3 {[%emt 0:02:51]} Nc5 {[%emt 0:02:42]} 20. Qb4 {[%emt 0:07:29]} Bd5 {[%emt 0:07:21]} 21. h3 {[%emt 0:06:54]} Bxf3 {[%emt 0:02:30]} 22. hxg4 {[%emt 0:00:46]} Bxg4 {[%emt 0:00:14]} 23. Nf3 {[%emt 0:00:30]} Ne6 {[%emt 0:04:59]} 24. Qd2 {[%emt 0:01:35]} Bh3 {[%emt 0:01:35]} 25. Bh1 {[%emt 0:00:19]} Bg4 {[%emt 0:06:32]} 26. Rac1 {[%emt 0:01:12]} h6 {[%emt 0:01:45]} 27. Rc4 {[%emt 0:00:38]} Rc8 {[%emt 0:02:29]} 28. Rec1 {[%emt 0:01:12]} Rxc4 {[%emt 0:00:45]} 29. Rxc4 {[%emt 0:00:33]} Ng5 {[%emt 0:00:34]} 30. Nxg5 {[%emt 0:01:23]} hxg5 {[%emt 0:01:05]} 31. e3 {[%emt 0:00:36]} Bf3 {[%emt 0:00:46]} 32. Bg2 {[%emt 0:00:39]} Bxg2 {[%emt 0:00:35]} 33. Kxg2 {[%emt 0:00:05]} g4 {[%emt 0:00:25]} 34. Qc3 {[%emt 0:00:09]} f6 {[%emt 0:00:25]} 35. Re4 {[%emt 0:00:52]} Rxe4 {[%emt 0:00:14]} 36. dxe4 {[%emt 0:00:07]} Qe8 {[%emt 0:00:46]} 37. Qc4+ {[%emt 0:00:11]} Kh8 {[%emt 0:00:32]} 38. Qd5 {[%emt 0:00:50]} Qc8 {[%emt 0:00:08]} 39. a4 {[%emt 0:00:42]} Bxe3 {[%emt 0:00:39]} 40. fxe3 {[%emt 0:01:36]} Qc2+ {[%emt 0:00:05]} 41. Kf1 {[%emt 0:00:07]} Qb1+ {[%emt 0:00:13]} 42. Ke2 {[%emt 0:00:16]} Qxb2+ {[%emt 0:00:05]} 43. Kd3 {[%emt 0:00:15]} Qb1+ {[%emt 0:00:25]} 44. Kc4 {[%emt 0:00:31]} Qc1+ {[%emt 0:00:27]} 45. Kb4 {[%emt 0:00:54]} Qe1+ {[%emt 0:00:51]} 46. Kc4 {[%emt 0:00:28]} Qxg3 {[%emt 0:00:14]} 47. Qh5+ {[%emt 0:00:23]} Kg8 {[%emt 0:00:08]} 48. Qe8+ {[%emt 0:00:04]} Kh7 {[%emt 0:00:06]} 49. Qh5+ {[%emt 0:00:04]} 1/2-1/2

[Event "Weekend Groninger Combinatie 2019"]
[Site "Groningen"]
[Date "2019.06.02"]
[Round "6.7"]
[White "Traetmar, Mattis"]
[Black "Den Boer, Paul"]
[Result "1-0"]
[ECO "C65"]
[WhiteElo "1988"]
[BlackElo "1901"]
[Annotator "NA"]
[PlyCount "118"]
[EventDate "2019.05.30"]
[EventType "swiss"]
[EventCountry "NED"]
[SourceTitle "playchess.com"]
[Source "ChessBase"]
[SourceQuality "1"]
[TimeControl "5400+30"]

{[%evp 8,118,24,5,15,14,32767,32767,32767,0,32767,10,11,20,23,8,32767,32767,32767,-112,-106,32767,32767,32767,-9,32767,32767,32767,32767,-32,10,32767,32767,32767,32767,32767,32767,32767,32767,32767,32767,32767,32767,32767,32767,32767,32767,32767,32767,32767,32767,32767,32767,32767,32767,32767,32767,93,106,111,99,116,32767,32767,158,98,187,181,32767,32767,32767,32767,32767,75,124,121,119,105,154,155,142,145,188,185,213,221,222,208,206,327,331,312,32767,32767,32767,335,32767,32767,487,610,845,1573,1484,4952,4895,29960,4947,29972,29984,29985,29984,32767,29985]} 1. e4 {[%emt 0:00:00]} e5 {[%emt 0:00:00]} 2. Nf3 {[%emt 0:00:00]} Nc6 {[%emt 0:00:00]} 3. Bb5 {[%emt 0:00:00]} Nf6 {[%emt 0:00:00]} 4. d3 {[%emt 0:00:00]} Bc5 {[%emt 0:00:30]} 5. O-O {[%emt 0:00:00]} d6 {[%emt 0:01:35]} 6. c3 {[%emt 0:00:00]} O-O {[%emt 0:10:31]} 7. Re1 {[%emt 0:00:02] C65: Ruy Lopez: Berlin Defence (3...Nf6), unusual lines and 4 0-0 Bc5} (7. Ba4 Ne7 8. Bc2 Ng6 9. d4 Bb6 10. a4 c6 11. dxe5 Nxe5 12. Nxe5 dxe5 13. Qxd8 Rxd8 14. a5 Bc5 {1-0 (39) Carlsen,M (2845)-Grischuk,A (2771) Shamkir 2019}) 7... a6 {[%emt 0:02:25]} 8. Ba4 {[%emt 0:00:15]} Ba7 {[%emt 0:00:36]} 9. h3 {[%emt 1:34:13]} Ne7 {[%emt 0:00:51]} 10. Nbd2 {[%emt 0:00:00]} Ng6 {[%emt 1:18:32]} 11. Nf1 {[%emt 0:00:00]} Nh5 {[%emt 0:00:30]} 12. Nxe5 {[%emt 0:00:00]} Nxe5 $146 {[%emt 0:01:00]} ({Predecessor:} 12... Qh4 13. Nf3 Qxf2+ 14. Kh1 Nh4 15. Re2 Qxf1+ {0-1 (15) Aguila Hernandez,E (1701)-Also Alvarado,L (2178) Gran Canaria 2011}) 13. Qxh5 {[%emt 0:00:00]} Nxd3 14. Re2 {[%emt 0:00:00]} Nxc1 {[%emt 0:02:00]} 15. Rxc1 {[%emt 0:00:00]} Qf6 {[%emt 0:00:00]} 16. Ne3 {[%emt 0:03:30]} Qf4 {[%emt 0:03:00]} 17. g3 {[%emt 0:00:00]} Qe5 {[%emt 0:00:00]} 18. Qh4 {[%emt 0:00:00]} Qe6 {[%emt 0:00:00]} 19. Nf5 {[%emt 0:00:00]} Qxa2 {[%emt 0:00:00]} 20. Ne7+ {[%emt 0:00:00]} Kh8 {[%emt 0:00:00]} 21. e5 {[%emt 0:00:00]} Qe6 {[%emt 0:00:00]} 22. Re4 {[%emt 0:03:00]} Qxh3 {[%emt 0:00:00]} 23. Qg5 {[%emt 0:00:00]} Qh6 {[%emt 0:00:00]} 24. Qxh6 {[%emt 0:00:00]} gxh6 {[%emt 0:00:00]} 25. exd6 {[%emt 0:00:00]} cxd6 {[%emt 0:00:00]} 26. Nxc8 {[%emt 0:00:00]} Raxc8 {[%emt 0:00:00]} 27. Re7 {[%emt 0:02:30]} Rb8 {[%emt 0:00:00]} 28. Rd1 {[%emt 0:00:30]} Kg7 {[%emt 0:00:00]} 29. b4 {[%emt 0:00:30]} a5 {[%emt 0:06:30]} 30. Rxd6 {[%emt 0:00:00]} axb4 {[%emt 0:00:00]} 31. cxb4 {[%emt 0:01:00]} Rbd8 {[%emt 0:01:00]} 32. Rxd8 {[%emt 0:00:00]} Rxd8 {[%emt 0:00:30]} 33. Rxb7 {[%emt 0:00:00]} Bd4 {[%emt 0:00:00]} 34. Bb3 {[%emt 0:01:30]} Rf8 {[%emt 0:00:00]} 35. b5 {[%emt 0:00:00]} h5 {[%emt 0:00:24]} 36. b6 {[%emt 0:01:00]} Kg6 {[%emt 0:00:12]} (36... Kh8 $16 37. Kg2 Re8) 37. Rd7 {[%emt 0:00:00]} Be5 {[%emt 0:01:54]} 38. f4 {[%emt 0:00:00]} Bb8 {[%emt 0:00:30]} 39. Kg2 {[%emt 0:01:30]} h4 {[%emt 0:00:00]} 40. Bc2+ {[%emt 0:00:00]} Kg7 {[%emt 0:00:00]} 41. gxh4 Bxf4 42. Bb3 {[%emt 0:01:30]} Be3 {[%emt 0:01:13]} 43. b7 {[%emt 0:00:30]} Ba7 {[%emt 0:01:17]} 44. Kf3 {[%emt 0:00:00]} Kg6 {[%emt 0:00:00]} 45. Rc7 {[%emt 0:01:00]} Bb8 {[%emt 0:01:00]} 46. Rc8 {[%emt 0:00:00]} Kg7 {[%emt 0:00:00]} 47. Ba4 {[%emt 0:00:00]} f5 {[%emt 0:00:24]} 48. Be8 {[%emt 0:00:00]} Be5 {[%emt 0:01:06]} 49. b8=Q {[%emt 0:00:00]} Bxb8 {[%emt 0:00:00]} 50. Rxb8 {[%emt 0:02:30]} Rf6 {[%emt 0:01:00]} 51. Kf4 {[%emt 0:00:30]} Rf8 {[%emt 0:00:30]} 52. Rb7+ {[%emt 0:00:00]} Kf6 {[%emt 0:00:00]} 53. Bh5 {[%emt 0:01:00] Kg7} Ke6 {[%emt 0:01:00]} 54. Rxh7 {[%emt 0:00:00]} Rf6 {[%emt 0:00:00]} 55. Rh8 {[%emt 0:02:00]} Ke7 {[%emt 0:00:00]} 56. Re8+ {[%emt 0:00:00]} Kd7 {[%emt 0:00:00]} 57. Kg5 {[%emt 0:01:00]} Re6 {[%emt 0:00:44]} 58. Rxe6 {[%emt 0:00:30]} Kxe6 {[%emt 0:00:06]} 59. Kg6 {[%emt 0:00:00]} f4 {[%emt 0:00:32]} 1-0